bitfinex-derivatives/quotes_SOLF0:USTF0_20260121
["timestamp","ask_amount","ask_price","bid_price","bid_amount"]
[1769007719419,108.1446,129.6,129.47,3.21464434]
[1769007720329,108.1669,129.57,129.47,3.21464434]
[1769007720530,0.05469994,129.55,129.47,3.21464434]
[1769007720929,6.955,129.54,129.47,3.21464434]
[1769007721130,108.1821,129.55,129.47,3.21464434]
[1769007721433,108.1821,129.55,129.38,108.3152]
[1769007721434,108.2051,129.52,129.42,3.21464434]
[1769007722025,108.2132,129.51,129.42,3.21464434]
[1769007723035,6.9577,129.49,129.42,3.21464434]
[1769007723936,6.9582,129.48,129.42,3.21464434]
[1769007724434,6.9575,129.5,129.42,3.21464434]
[1769007725427,6.9575,129.5,129.41,6.9618]
[1769007725428,6.9575,129.5,129.45,0.05891304]
[1769007725628,108.1967,129.53,129.45,3.27355738]
[1769007725831,122.077,129.57,129.45,3.27355738]
[1769007725832,108.1699,129.57,129.45,3.27355738]
[1769007726032,108.1699,129.57,129.45,3.21464434]
[1769007726635,108.1699,129.57,129.49,0.05014133]
[1769007727028,6.9558,129.53,129.49,0.05014133]
[1769007727225,6.26142334,129.58,129.49,3.26478567]
[1769007727435,6.9555,129.53,129.49,3.26478567]
[1769007727629,6.9555,129.53,129.49,3.21464434]
[1769007728024,6.9562,129.52,129.46,3.21464434]
[1769007728231,108.1986,129.53,129.46,3.21464434]
[1769007729338,6.9564,129.52,129.46,3.21464434]
[1769007729535,0.04975516,129.51,129.46,3.21464434]
[1769007729737,108.184,129.55,129.46,3.21464434]
[1769007729951,108.1634,129.57,129.48,3.26345905]
[1769007730433,6.9553,129.54,129.48,3.21464434]
[1769007731441,6.9553,129.54,129.5,0.05070655]
[1769007732239,6.9541,129.56,129.5,0.05070655]
[1769007732640,114.41892334,129.58,129.48,3.21464434]
[1769007732839,6.9551,129.54,129.48,3.21464434]
[1769007733037,114.41892334,129.58,129.52,0.05767148]
[1769007733644,0.05096958,129.56,129.48,3.21464434]
[1769007734147,114.41892334,129.58,129.48,3.21464434]
[1769007734839,0.05423273,129.54,129.48,3.21464434]
[1769007736240,7.00923273,129.54,129.46,6.9588]
[1769007736442,0.05423273,129.54,129.46,3.1760184]
[1769007736640,6.25258573,129.58,129.46,3.1760184]
[1769007737037,108.1717,129.56,129.46,3.1760184]
[1769007737350,0.05541336,129.53,129.43,3.1760184]
[1769007737954,6.9555,129.53,129.45,6.9597]
[1769007738446,6.9555,129.53,129.46,3.1760184]
[1769007738645,0.05576191,129.5,129.45,6.9594]
[1769007738845,0.05576191,129.5,129.45,10.1354184]
[1769007740351,6.9554,129.54,129.47,3.1760184]
[1769007741642,23.2,129.58,129.49,0.05535605]
[1769007741643,6.9543,129.56,129.49,0.05535605]
[1769007741841,6.25258573,129.58,129.49,0.05535605]
[1769007742266,6.25258573,129.58,129.47,3.1760184]
[1769007742453,6.25258573,129.58,129.52,0.05703041]
[1769007743154,6.9533,129.57,129.52,0.05703041]
[1769007744845,6.9527,129.59,129.52,0.05703041]
[1769007745248,6.9527,129.59,129.51,10.1324184]
[1769007745747,6.9527,129.59,129.54,0.05756111]
[1769007746755,20.15268573,129.64,129.54,0.05756111]
[1769007746953,114.36008573,129.64,129.54,3.23357951]
[1769007747154,114.36008573,129.64,129.54,3.1760184]
[1769007747347,0.05607021,129.6,129.54,3.1760184]
[1769007747547,0.05607021,129.6,129.58,0.05514896]
[1769007750149,0.05607021,129.6,129.54,3.1760184]
[1769007751954,0.05607021,129.6,129.55,10.1303184]
[1769007752252,0.05607021,129.6,129.56,3.1760184]
[1769007752459,6.95,129.64,129.56,3.1760184]
[1769007752651,108.0896,129.66,129.56,3.22522231]
[1769007752847,6.9501,129.63,129.56,0.04920391]
[1769007753054,6.9501,129.63,129.53,3.1760184]
[1769007753552,6.25258573,129.64,129.53,3.1760184]
[1769007753553,6.9507,129.62,129.55,6.9543]
[1769007753761,6.25258573,129.64,129.57,0.05616301]
[1769007754062,6.9502,129.63,129.57,0.05616301]
[1769007754461,6.25258573,129.64,129.57,0.05616301]
[1769007754763,6.9512,129.61,129.57,0.05616301]
[1769007755170,114.36348573,129.64,129.57,0.05616301]
[1769007755462,6.9508,129.62,129.57,0.05616301]
[1769007759662,6.9502,129.63,129.57,0.05616301]
[1769007759864,23.2,129.66,129.57,0.05616301]
[1769007760256,23.2,129.66,129.55,3.1760184]
[1769007760462,131.2907,129.66,129.56,6.9536]
[1769007760664,114.32918573,129.68,129.6,0.05396928]
[1769007760966,2.54271723,129.64,129.6,0.05396928]
[1769007761268,2.54271723,129.64,129.57,3.1760184]
[1769007761469,2.54271723,129.64,129.61,0.05021909]
[1769007761763,0.0548104,129.62,129.57,3.1760184]
[1769007762165,0.0548104,129.62,129.57,10.1293184]
[1769007762870,137.51991848,129.68,129.57,10.1293184]
[1769007763070,137.51991848,129.68,129.58,0.05183903]
[1769007763366,6.9496,129.64,129.58,0.05183903]
[1769007763674,108.0886,129.66,129.57,3.1760184]
[1769007764158,108.0886,129.66,129.54,3.1760184]
[1769007764358,108.0886,129.66,129.6,0.05907246]
[1769007764562,108.083,129.67,129.6,0.05907246]
[1769007764776,6.24331848,129.68,129.6,0.05907246]
[1769007764964,6.24331848,129.68,129.6,3.23509086]
[1769007765260,108.0882,129.66,129.57,3.1760184]
[1769007765574,114.31771848,129.68,129.57,3.1760184]
[1769007765763,0.05145096,129.65,129.57,3.1760184]
[1769007766273,6.9496,129.64,129.57,3.1760184]
[1769007766469,108.0891,129.66,129.57,3.1760184]
[1769007767369,108.0817,129.67,129.57,3.1760184]
[1769007768168,108.0555,129.7,129.58,3.38574877]
[1769007768561,6.948,129.67,129.6,6.9516]
[1769007768765,137.48781848,129.72,129.61,3.38574877]
[1769007768961,108.0465,129.71,129.61,3.38574877]
[1769007769166,6.9481,129.67,129.61,3.38574877]
[1769007769875,6.9493,129.65,129.59,3.38574877]
[1769007770076,7.00586958,129.65,129.59,3.38574877]
[1769007770668,6.9497,129.64,129.59,3.38574877]
[1769007770867,6.9497,129.64,129.61,0.05020009]
[1769007771071,108.15666958,129.65,129.56,3.38574877]
[1769007771373,6.9514,129.61,129.56,3.38574877]
[1769007771873,6.9505,129.63,129.56,3.38574877]
[1769007772469,0.05641597,129.61,129.56,3.38574877]
[1769007774779,0.05641597,129.61,129.53,3.38574877]
[1769007775071,108.1307,129.61,129.53,3.38574877]
[1769007775277,6.9534,129.57,129.53,3.38574877]
[1769007775472,0.05231344,129.58,129.5,3.38574877]
[1769007775872,108.1574,129.58,129.5,3.38574877]
[1769007776180,6.9544,129.55,129.5,3.38574877]
[1769007776382,7.0046316,129.55,129.5,3.38574877]
[1769007776569,6.955,129.54,129.5,3.38574877]
[1769007776880,108.2339316,129.55,129.47,3.38574877]
[1769007777270,108.1837,129.55,129.47,3.38574877]
[1769007777469,6.9552,129.54,129.47,3.38574877]
[1769007777677,0.05101911,129.52,129.47,3.38574877]
[1769007778366,6.9548,129.55,129.47,3.38574877]
[1769007779378,6.9548,129.55,129.48,3.44322956]
[1769007780075,6.9548,129.55,129.5,0.05901295]
[1769007780478,6.9537,129.57,129.5,3.50224251]
[1769007780973,108.1361,129.61,129.5,3.44322956]
[1769007781179,6.9526,129.59,129.51,3.44322956]
[1769007781377,6.9526,129.59,129.52,3.49420814]
[1769007782176,6.9515,129.61,129.52,3.49420814]
[1769007782572,108.0919,129.66,129.54,3.44322956]
[1769007782875,6.9494,129.65,129.57,3.44322956]
[1769007783077,108.0966,129.65,129.57,3.44322956]
[1769007783672,6.9502,129.63,129.6,0.05591448]
[1769007784592,6.9494,129.65,129.6,0.05591448]
[1769007784782,108.061,129.7,129.6,3.49914404]
[1769007785079,114.29561848,129.71,129.6,3.44322956]
[1769007785286,6.9475,129.68,129.64,0.05033389]
[1769007785582,108.0575,129.7,129.64,0.05033389]
[1769007785782,6.948,129.67,129.6,3.44322956]
[1769007786175,6.9486,129.66,129.6,3.44322956]
[1769007786385,108.0668,129.69,129.6,3.44322956]
[1769007786776,6.9478,129.68,129.6,3.44322956]
[1769007788178,13.18951848,129.71,129.6,3.44322956]
[1769007788383,6.24331848,129.71,129.6,3.44322956]
[1769007790086,6.9465,129.7,129.6,10.39482956]
[1769007790279,6.9465,129.7,129.6,3.44322956]
[1769007790687,6.24331848,129.68,129.57,3.44322956]
[1769007791485,0.04925654,129.64,129.58,3.44322956]
[1769007791981,0.04925654,129.64,129.59,3.44322956]
[1769007792180,6.24331848,129.71,129.59,3.44322956]
[1769007792385,6.24331848,129.71,129.58,108.151]
[1769007792386,6.24331848,129.71,129.61,3.44322956]
[1769007792589,13.18931848,129.71,129.61,3.44322956]
[1769007793179,13.18931848,129.71,129.6,6.9514]
[1769007793180,6.24331848,129.71,129.62,10.39362956]
[1769007793382,6.24331848,129.71,129.65,0.05822109]
[1769007793986,6.9451,129.73,129.65,0.05822109]
[1769007794389,6.9451,129.73,129.62,10.39362956]
[1769007794886,6.23846899,129.72,129.62,10.39362956]
[1769007795788,6.23846899,129.72,129.61,3.4128525]
[1769007795998,6.23846899,129.72,129.62,3.4128525]
[1769007796289,6.23846899,129.72,129.64,10.3621525]
[1769007796782,0.04885258,129.69,129.64,10.3621525]
[1769007796983,6.23846899,129.75,129.64,3.4128525]
[1769007797192,6.23846899,129.75,129.67,0.05326921]
[1769007797691,6.23846899,129.75,129.64,3.4128525]
[1769007797692,13.18226899,129.75,129.64,3.4128525]
[1769007798281,13.18226899,129.75,129.68,0.05236235]
[1769007798688,6.23846899,129.75,129.68,0.05236235]
[1769007799590,13.18226899,129.75,129.68,0.05236235]
[1769007799988,6.23846899,129.75,129.68,6.99966235]
[1769007800693,6.23846899,129.75,129.68,0.05236235]
[1769007801197,13.18256899,129.75,129.68,0.05236235]
[1769007802193,6.23846899,129.77,129.68,0.05236235]
[1769007802696,6.23846899,129.77,129.66,3.4128525]
[1769007802697,114.23776899,129.77,129.66,6.9482]
[1769007802895,6.23846899,129.74,129.66,6.9482]
[1769007803100,107.9993,129.77,129.65,111.5044525]
[1769007803101,6.23846899,129.77,129.65,111.5044525]
[1769007803289,13.18126899,129.77,129.69,6.9468]
[1769007803883,6.23846899,129.77,129.69,6.9468]
[1769007804397,0.04985936,129.74,129.67,6.9475]
[1769007804896,0.04985936,129.74,129.65,111.5044525]
[1769007804897,0.04985936,129.74,129.68,6.9473]
[1769007805198,0.04985936,129.74,129.69,3.4128525]
[1769007805385,6.23846899,129.77,129.69,3.4128525]
[1769007805592,138.75428507,129.8,129.69,3.4128525]
[1769007805792,6.23846899,129.8,129.7,3.4128525]
[1769007806295,6.9423,129.78,129.7,3.4128525]
[1769007806601,6.23846899,129.8,129.65,3.4128525]
[1769007806602,0.05669604,129.76,129.65,3.4128525]
[1769007807098,0.05669604,129.76,129.62,108.1146]
[1769007807099,6.23846899,129.81,129.66,3.4128525]
[1769007807998,0.05367052,129.75,129.66,3.4128525]
[1769007808388,6.9419,129.79,129.69,3.4128525]
[1769007808592,114.22736899,129.78,129.65,3.4128525]
[1769007809302,107.9996,129.77,129.65,3.4128525]
[1769007809491,0.05646581,129.73,129.65,3.4128525]
[1769007809697,0.05646581,129.73,129.7,0.05199883]
[1769007809999,6.23846899,129.75,129.7,0.05199883]
[1769007810201,0.05224297,129.73,129.65,3.4128525]
[1769007810404,6.99724297,129.73,129.65,3.4128525]
[1769007810698,6.945,129.73,129.65,3.4128525]
[1769007811301,6.23846899,129.75,129.65,3.4128525]
[1769007811896,6.9443,129.74,129.66,3.4128525]
[1769007812105,114.22736899,129.78,129.66,3.4128525]
[1769007812300,6.23846899,129.78,129.66,3.4128525]
[1769007812803,6.9433,129.76,129.67,6.9478]
[1769007812993,6.9433,129.76,129.68,3.4128525]
[1769007813301,0.04890056,129.73,129.68,3.4128525]
[1769007814200,6.9433,129.76,129.69,0.05464691]
[1769007814388,6.9433,129.76,129.69,3.46749941]
[1769007815198,6.23846899,129.78,129.69,3.46749941]
[1769007815603,6.23846899,129.78,129.69,3.4128525]
[1769007815800,13.17926899,129.81,129.7,3.4128525]
[1769007815996,13.17926899,129.81,129.72,0.05764071]
[1769007816601,13.17926899,129.81,129.7,3.4128525]
[1769007816802,13.17926899,129.81,129.75,0.05688592]
[1769007817294,0.05526973,129.79,129.71,3.4128525]
[1769007817703,6.941,129.8,129.71,3.4128525]
[1769007818402,6.23846899,129.81,129.67,108.0769]
[1769007818403,6.23846899,129.81,129.72,3.4128525]
[1769007818603,6.9403,129.82,129.72,3.4128525]
[1769007819301,13.17776899,129.84,129.74,3.4128525]
[1769007819499,6.23846899,129.84,129.74,3.4128525]
[1769007819703,29.43846899,129.87,129.74,3.4128525]
[1769007819906,6.9379,129.86,129.77,6.9424]
[1769007820109,6.9379,129.86,129.78,0.0593563]
[1769007820306,6.9379,129.86,129.77,3.4128525]
[1769007820307,107.918,129.87,129.77,3.4128525]
[1769007820609,13.17686899,129.85,129.77,3.4128525]
[1769007821308,6.23846899,129.86,129.77,3.4128525]
[1769007822206,13.17646899,129.86,129.77,10.3553525]
[1769007822599,6.9384,129.85,129.77,3.4128525]
[1769007822799,0.0533941,129.83,129.75,6.9432]
[1769007823206,13.17666899,129.86,129.76,3.4128525]
[1769007823917,13.17666899,129.86,129.77,6.9425]
[1769007824110,0.05680343,129.82,129.77,6.9425]
[1769007824311,13.17556899,129.88,129.79,6.9414]
[1769007824617,6.23846899,129.88,129.8,0.05070025]
[1769007825023,6.23846899,129.88,129.79,6.9414]
[1769007825620,6.23846899,129.88,129.82,0.05727156]
[1769007825821,6.9384,129.85,129.78,3.4128525]
[1769007826018,6.23846899,129.82,129.72,3.16088808]
[1769007826221,6.23846899,129.82,129.73,3.16088808]
[1769007826608,6.23846899,129.85,129.76,6.943]
[1769007826916,6.23846899,129.85,129.75,3.16088808]
[1769007827521,0.05158647,129.81,129.75,3.16088808]
[1769007827917,6.9382,129.86,129.72,108.0329]
[1769007827918,6.9382,129.86,129.79,0.05662733]
[1769007828321,6.9382,129.86,129.78,3.16088808]
[1769007828822,6.9384,129.85,129.78,3.16088808]
[1769007829222,6.9384,129.85,129.81,0.04931224]
[1769007829830,137.34656899,129.88,129.81,0.04931224]
[1769007829831,6.9376,129.87,129.81,0.04931224]
[1769007830024,6.23846899,129.88,129.81,0.04931224]
[1769007830821,13.17566899,129.88,129.81,0.04931224]
[1769007831009,114.08966899,129.95,129.81,3.21020032]
[1769007831320,107.8648,129.93,129.81,3.21020032]
[1769007831515,6.9359,129.9,129.81,3.16088808]
[1769007831822,6.9359,129.9,129.86,0.05059847]
[1769007832322,6.23846899,129.92,129.82,3.16088808]
[1769007832523,6.23846899,129.95,129.82,3.16088808]
[1769007832723,114.08796899,129.95,129.82,3.16088808]
[1769007833421,6.9339,129.94,129.82,3.16088808]
[1769007833626,114.08796899,129.95,129.82,3.16088808]
[1769007833823,107.8643,129.93,129.82,3.16088808]
[1769007834328,107.835,129.97,129.87,3.16088808]
[1769007834525,107.8504,129.95,129.87,3.16088808]
[1769007834823,107.8504,129.95,129.86,0.05920669]
[1769007835215,6.933,129.95,129.86,0.05920669]
[1769007835412,6.933,129.95,129.84,3.16088808]
[1769007836324,6.23846899,129.97,129.84,3.16088808]
[1769007836527,6.23846899,129.97,129.88,0.05017667]
[1769007836912,6.23846899,129.97,129.86,3.16088808]
[1769007838022,6.23846899,129.98,129.86,3.16088808]
[1769007838221,13.17006899,129.98,129.86,3.16088808]
[1769007838416,6.23846899,129.98,129.86,3.16088808]
[1769007838819,114.06626899,129.98,129.86,3.16088808]
[1769007839533,6.9322,129.97,129.86,3.16088808]
[1769007840216,114.05876899,129.99,129.86,3.16088808]
[1769007840217,13.16956899,129.99,129.86,3.16088808]
[1769007840423,6.23846899,129.99,129.86,3.16088808]
[1769007840725,6.23846899,129.96,129.86,3.16088808]
[1769007840929,6.23846899,129.96,129.83,3.12503434]
[1769007841329,0.05541838,129.92,129.8,3.12503434]
[1769007841528,0.05541838,129.92,129.81,111.08483434]
[1769007841831,6.23846899,129.95,129.82,3.12503434]
[1769007842533,0.05462096,129.9,129.82,3.12503434]
[1769007843030,6.23846899,129.92,129.77,3.12503434]
[1769007843534,6.9357,129.9,129.78,6.9419]
[1769007843733,0.05671672,129.86,129.77,3.12503434]
[1769007844133,6.23846899,129.89,129.77,3.12503434]
[1769007844936,0.05308143,129.84,129.77,3.12503434]
[1769007845153,0.05308143,129.84,129.72,3.12503434]
[1769007845727,6.23846899,129.86,129.72,3.12503434]
[1769007845927,6.9385,129.85,129.74,3.12503434]
[1769007846439,6.939,129.84,129.74,3.12503434]
[1769007846828,114.16486899,129.86,129.74,3.12503434]
[1769007846829,6.23846899,129.83,129.74,3.12503434]
[1769007847138,13.17816899,129.83,129.74,3.12503434]
[1769007847436,107.9549,129.82,129.71,3.12503434]
[1769007847632,13.22864784,129.8,129.71,3.12503434]
[1769007847834,6.28734784,129.8,129.71,3.12503434]
[1769007848036,114.21266899,129.8,129.75,0.04949493]
[1769007848234,114.21266899,129.8,129.7,293.17715831]
[1769007848435,0.0537392,129.77,129.68,3.12503434]
[1769007848834,114.21266899,129.8,129.68,3.12503434]
[1769007849036,6.23846899,129.77,129.68,3.12503434]
[1769007849336,6.23846899,129.77,129.64,3.12503434]
[1769007849543,0.05571416,129.74,129.66,3.12503434]
[1769007850033,6.23846899,129.77,129.66,3.12503434]
[1769007850836,131.1742,129.8,129.66,3.12503434]
[1769007851040,6.9417,129.79,129.66,3.12503434]
[1769007851438,114.20436899,129.81,129.66,3.12503434]
[1769007851743,6.9413,129.8,129.67,3.12503434]
[1769007852843,0.05219176,129.75,129.67,3.12503434]
[1769007853341,6.9418,129.79,129.67,3.12503434]
[1769007854038,0.05274922,129.74,129.67,3.12503434]
[1769007855741,0.05274922,129.74,129.62,3.13650506]
[1769007856231,6.23846899,129.75,129.63,3.13650506]
[1769007856844,6.9438,129.75,129.63,3.13650506]
[1769007857039,13.18017326,129.75,129.63,3.13650506]
[1769007858146,114.25287326,129.75,129.63,3.13650506]
[1769007858839,13.18037326,129.75,129.63,3.13650506]
[1769007859449,6.9426,129.77,129.67,3.13650506]
[1769007860650,6.9433,129.76,129.66,6.9483]
[1769007860953,0.04893404,129.73,129.66,6.9483]
[1769007861248,0.04893404,129.73,129.66,10.08480506]
[1769007861451,0.04893404,129.73,129.66,3.13650506]
[1769007861748,0.04893404,129.73,129.63,3.13650506]
[1769007861943,0.04893404,129.73,129.64,3.13650506]
[1769007862447,13.18027326,129.75,129.64,3.13650506]
[1769007862649,6.23637326,129.75,129.66,10.08480506]
[1769007863754,6.23637326,129.75,129.67,6.9478]
[1769007863943,6.23637326,129.75,129.66,3.13650506]
[1769007864845,6.23637326,129.75,129.66,10.08460506]
[1769007865350,6.23637326,129.75,129.66,3.13650506]
[1769007866045,13.18017326,129.75,129.66,3.13650506]
[1769007866252,0.05764047,129.72,129.66,3.13650506]
[1769007867051,2.53991708,129.71,129.66,3.13650506]
[1769007867455,2.53991708,129.69,129.63,3.13650506]
[1769007867649,2.53991708,129.67,129.6,3.13650506]
[1769007868348,0.05914186,129.65,129.6,3.13650506]
[1769007868556,2.53991708,129.67,129.6,3.13650506]
[1769007868853,6.23914634,129.72,129.6,3.13650506]
[1769007869045,6.23914634,129.72,129.62,3.13650506]
[1769007869451,114.24194634,129.77,129.62,3.13650506]
[1769007869652,23.2,129.76,129.62,3.13650506]
[1769007870046,114.23884634,129.77,129.68,0.05435924]
[1769007870352,108.0074,129.76,129.68,0.05435924]
[1769007870556,131.2074,129.76,129.66,3.13650506]
[1769007871055,0.05758456,129.72,129.66,3.13650506]
[1769007872454,0.05758456,129.72,129.65,6.9489]
[1769007872650,0.05758456,129.72,129.63,3.13650506]
[1769007872951,6.23914634,129.71,129.61,3.13650506]
[1769007873260,0.05838041,129.69,129.61,3.13650506]
[1769007873458,6.23914634,129.68,129.58,3.13650506]
[1769007873954,6.948,129.67,129.58,10.08920506]
[1769007874654,6.23914634,129.68,129.59,3.13650506]
[1769007874855,6.23914634,129.71,129.61,3.13650506]
[1769007875056,6.23914634,129.71,129.62,3.13650506]
[1769007875650,0.05040726,129.68,129.64,6.9491]
[1769007876054,0.05040726,129.68,129.62,3.13650506]
[1769007877859,6.23914634,129.74,129.63,3.13650506]
[1769007878065,6.23914634,129.74,129.64,0.05073792]
[1769007878355,6.9448,129.73,129.64,0.05073792]
[1769007878658,6.23914634,129.74,129.63,3.13650506]
[1769007878861,108.0096,129.76,129.63,3.13650506]
[1769007879062,6.9443,129.74,129.63,3.13650506]
[1769007879357,108.0024,129.77,129.67,3.19353967]
[1769007879858,6.9438,129.75,129.67,3.13650506]
[1769007880764,108.0167,129.75,129.64,3.13650506]
[1769007881059,108.0075,129.76,129.64,3.13650506]
[1769007881457,108.0245,129.74,129.64,3.13650506]
[1769007882056,0.04986143,129.7,129.64,3.13650506]
[1769007882363,0.04986143,129.7,129.58,6.23914634]
[1769007882364,0.04986143,129.7,129.61,3.13650506]
[1769007882553,6.9471,129.69,129.61,3.13650506]
[1769007882753,108.0491,129.71,129.61,3.13650506]
[1769007883055,6.9475,129.68,129.61,3.13650506]
[1769007883252,114.28284634,129.72,129.61,3.13650506]
[1769007883560,0.05456323,129.67,129.61,3.13650506]
[1769007883961,114.25494634,129.75,129.61,3.13650506]
[1769007884158,108.0302,129.73,129.61,3.13650506]
[1769007884457,108.0387,129.72,129.61,3.13650506]
[1769007884762,108.0403,129.72,129.61,3.13650506]
[1769007884973,108.0554,129.7,129.61,3.13650506]
[1769007885258,0.05159712,129.68,129.61,3.13650506]
[1769007885454,6.99909712,129.68,129.61,3.13650506]
[1769007885859,0.05159712,129.68,129.61,3.13650506]
[1769007886060,108.12619712,129.68,129.56,3.12340371]
[1769007886365,108.0806,129.67,129.56,3.12340371]
[1769007886556,108.0964,129.65,129.56,3.12340371]
[1769007886959,0.05721524,129.63,129.56,3.12340371]
[1769007887350,108.17411524,129.63,129.56,3.12340371]
[1769007887554,108.17411524,129.63,129.5,3.12340371]
[1769007887853,6.9519,129.6,129.51,6.9564]
[1769007888053,6.9519,129.6,129.52,3.12340371]
[1769007888551,0.05279,129.57,129.52,3.12340371]
[1769007890654,108.0881,129.66,129.53,3.17297828]
[1769007890855,6.9494,129.65,129.54,3.12340371]
[1769007891062,108.075,129.68,129.55,3.12340371]
[1769007891063,108.0891,129.66,129.55,3.12340371]
[1769007891256,108.0964,129.65,129.55,3.12340371]
[1769007891452,6.9514,129.61,129.52,3.12340371]
[1769007891763,108.1249,129.62,129.52,3.12340371]
[1769007891959,6.9525,129.59,129.52,3.12340371]
[1769007892166,0.05924876,129.58,129.52,3.12340371]
[1769007892667,7.01214876,129.58,129.52,3.12340371]
[1769007893152,0.05924876,129.58,129.52,3.12340371]
[1769007893952,0.05924876,129.58,129.46,301.91077616]
[1769007893953,0.05924876,129.58,129.49,3.12340371]
[1769007894261,7.01234876,129.58,129.47,3.12340371]
[1769007894460,108.1645,129.57,129.47,3.12340371]
[1769007894661,108.1491,129.59,129.47,3.12340371]
[1769007894858,0.05903145,129.54,129.47,3.12340371]
[1769007895751,6.9524,129.59,129.5,3.12340371]
[1769007896158,6.23914634,129.6,129.5,3.12340371]
[1769007896959,114.38014634,129.6,129.5,3.12340371]
[1769007897160,114.38014634,129.6,129.54,0.05659346]
[1769007897561,0.05371798,129.56,129.5,3.12340371]
[1769007897766,0.05371798,129.56,129.47,3.12340371]
[1769007898161,6.9542,129.56,129.47,3.12340371]
[1769007898468,114.40594634,129.57,129.47,3.12340371]
[1769007899069,0.05350745,129.53,129.47,3.12340371]
[1769007900262,108.1496,129.59,129.48,3.45322189]
[1769007900474,108.1557,129.58,129.49,0.05604123]
[1769007900669,108.1557,129.58,129.49,3.50926312]
[1769007900970,6.23914634,129.6,129.49,3.45322189]
[1769007901269,108.1106,129.64,129.51,3.45322189]
[1769007901471,108.1106,129.64,129.54,3.45322189]
[1769007901472,6.9508,129.62,129.54,3.45322189]
[1769007901867,108.0846,129.67,129.56,3.5058878]
[1769007902265,108.0846,129.67,129.56,3.45322189]
[1769007902466,6.9498,129.64,129.56,3.45322189]
[1769007903078,6.9493,129.65,129.56,3.45322189]
[1769007903263,6.9493,129.65,129.59,0.05927162]
[1769007903977,6.9481,129.67,129.59,3.51249351]
[1769007904469,108.0797,129.67,129.59,3.45322189]
[1769007904677,108.0971,129.65,129.56,3.45322189]
[1769007905470,6.9503,129.63,129.56,3.45322189]
[1769007905666,108.0751,129.68,129.56,3.45322189]
[1769007905866,108.0805,129.67,129.56,3.45322189]
[1769007906062,108.0895,129.66,129.61,0.05536411]
[1769007906267,108.0983,129.65,129.56,3.45322189]
[1769007906467,0.05054905,129.63,129.56,3.45322189]
[1769007906680,6.9513,129.61,129.52,3.45322189]
[1769007907378,6.9518,129.6,129.52,3.45322189]
[1769007907570,0.05241136,129.58,129.52,3.45322189]
[1769007908178,6.9518,129.6,129.54,0.0535541]
[1769007908476,6.9518,129.6,129.54,3.50677599]
[1769007909071,108.1163,129.63,129.54,3.50677599]
[1769007909473,108.1163,129.63,129.54,3.45322189]
[1769007909669,108.1254,129.62,129.54,3.45322189]
[1769007909877,0.05067884,129.6,129.51,3.45322189]
[1769007910375,6.9534,129.57,129.51,3.45322189]
[1769007911178,108.1254,129.62,129.51,3.45322189]
[1769007911574,6.9512,129.61,129.53,3.45322189]
[1769007911974,114.35544634,129.63,129.53,3.45322189]
[1769007912375,6.9523,129.59,129.53,3.45322189]
[1769007913067,0.0486571,129.57,129.53,3.45322189]
[1769007913871,0.0486571,129.57,129.54,0.04995924]
[1769007917781,6.9514,129.61,129.54,3.44362343]
[1769007918284,6.9514,129.61,129.54,3.39366419]
[1769007918670,6.9504,129.63,129.54,3.39366419]
[1769007918988,108.0945,129.66,129.54,3.39366419]
[1769007919289,6.9494,129.65,129.58,3.39366419]
[1769007920283,6.9482,129.67,129.58,3.39366419]
[1769007920479,6.24842238,129.71,129.6,3.39366419]
[1769007920679,108.0416,129.72,129.6,3.39366419]
[1769007920985,108.0416,129.72,129.64,0.04870687]
[1769007921181,108.047,129.71,129.64,0.04870687]
[1769007921375,6.9475,129.68,129.64,0.04870687]
[1769007921679,108.0646,129.69,129.6,3.39366419]
[1769007921983,6.9486,129.66,129.65,0.05667703]
[1769007922184,6.9486,129.66,129.57,3.39366419]
[1769007922395,6.9497,129.64,129.57,3.39366419]
[1769007922579,108.0584,129.7,129.57,3.39366419]
[1769007923079,6.948,129.67,129.59,3.39366419]
[1769007923286,108.0667,129.69,129.59,3.39366419]
[1769007923482,108.0724,129.68,129.59,3.39366419]
[1769007924784,6.9477,129.68,129.59,3.39366419]
[1769007924975,108.0634,129.69,129.59,3.39366419]
[1769007925174,6.9485,129.66,129.59,3.39366419]
[1769007925789,6.9492,129.65,129.59,3.39366419]
[1769007926586,6.9492,129.65,129.61,0.05104169]
[1769007926889,108.0883,129.66,129.57,3.39366419]
[1769007927877,6.9498,129.64,129.57,3.39366419]
[1769007928281,0.05107506,129.63,129.57,3.39366419]
[1769007928789,0.05107506,129.63,129.58,3.39366419]
[1769007929588,6.9484,129.67,129.6,3.39366419]
[1769007929789,108.0478,129.71,129.6,3.39366419]
[1769007929993,108.0478,129.71,129.61,3.39366419]
[1769007930688,6.24842238,129.73,129.62,3.39366419]